bitfinex/quotes_BTCUSD_20250803
["timestamp","ask_amount","ask_price","bid_price","bid_amount"]
[1754225152128,1.31696,114280.0,114270.0,0.23734798]
[1754225152343,0.0081879,114280.0,114270.0,0.23634798]
[1754225152571,0.0081879,114280.0,114270.0,0.29315798]
[1754225152791,0.0443776,114280.0,114270.0,0.29520798]
[1754225153003,0.0473676,114280.0,114270.0,0.29520798]
[1754225153223,0.0111779,114280.0,114270.0,0.29520798]
[1754225153447,0.2233656,114300.0,114270.0,0.29620798]
[1754225153652,1.33333928,114300.0,114280.0,0.06581]
[1754225153892,1.31912,114290.0,114280.0,0.06581]
[1754225154090,1.31912,114290.0,114280.0,0.19905]
[1754225154306,1.35516366,114290.0,114280.0,0.19905]
[1754225155559,1.35815366,114290.0,114280.0,0.19405]
[1754225156456,1.35815366,114290.0,114280.0,0.220366]
[1754225157784,1.14885766,114290.0,114280.0,0.220366]
[1754225158439,1.16524996,114290.0,114280.0,0.220366]
[1754225159753,1.16524996,114290.0,114280.0,0.212366]
[1754225161279,0.05243596,114290.0,114280.0,0.214416]
[1754225161495,0.03604366,114290.0,114280.0,0.217446]
[1754225161711,0.03604366,114290.0,114280.0,0.30607884]
[1754225161895,0.01689084,114310.0,114280.0,0.30607884]
[1754225162121,0.03342922,114310.0,114290.0,0.07374198]
[1754225162352,0.03342922,114310.0,114300.0,0.13324]
[1754225162575,0.03043922,114310.0,114300.0,0.28973284]
[1754225162794,0.03043922,114310.0,114300.0,0.28473284]
[1754225163266,0.03243922,114310.0,114300.0,0.28776284]
[1754225163479,0.07140395,114310.0,114300.0,0.28776284]
[1754225163714,0.06940395,114310.0,114300.0,0.28776284]
[1754225163923,0.01973838,114310.0,114300.0,0.28776284]
[1754225165025,0.01673838,114310.0,114300.0,0.28776284]
[1754225165456,0.02692524,114310.0,114300.0,0.28776284]
[1754225165685,0.01053685,114310.0,114300.0,0.28776284]
[1754225165904,0.00853685,114310.0,114300.0,0.28776284]
[1754225166553,0.00853685,114310.0,114300.0,0.31407084]
[1754225168781,0.04468398,114310.0,114300.0,0.31407084]
[1754225168953,0.00853685,114310.0,114300.0,0.31407084]
[1754225169934,0.00853685,114310.0,114300.0,0.31104084]
[1754225171011,0.02999184,114310.0,114300.0,0.18075084]
[1754225171254,0.04634184,114310.0,114300.0,0.159508]
[1754225171793,0.08237502,114310.0,114300.0,0.159508]
[1754225172023,0.06602502,114310.0,114300.0,0.224388]
[1754225172257,0.06602502,114310.0,114300.0,0.19808]
[1754225173809,0.34,114300.0,114290.0,0.026311]
[1754225174029,0.36456918,114300.0,114290.0,0.13324]
[1754225174297,1.107664,114290.0,114280.0,0.026314]
[1754225174495,1.11799819,114290.0,114280.0,0.159554]
[1754225174752,0.01327419,114290.0,114280.0,0.154554]
[1754225175206,0.01327419,114290.0,114280.0,0.19812]
[1754225175427,0.01327419,114290.0,114280.0,0.06488]
[1754225175647,0.01327419,114290.0,114280.0,0.19812]
[1754225176774,0.01327419,114290.0,114280.0,0.19012]
[1754225177284,0.02965775,114290.0,114280.0,0.19012]
[1754225178542,0.02965775,114290.0,114270.0,0.09410698]
[1754225178543,0.05400775,114290.0,114270.0,0.09410698]
[1754225178771,1.110604,114280.0,114250.0,0.07071198]
[1754225178986,1.110604,114270.0,114260.0,0.06488]
[1754225179186,1.449804,114260.0,114250.0,0.159639]
[1754225179391,1.47438175,114260.0,114250.0,0.13332]
[1754225179595,1.50167175,114260.0,114250.0,0.13332]
[1754225180016,1.50167175,114260.0,114240.0,0.06488]
[1754225180017,1.107664,114250.0,114240.0,0.06488]
[1754225180222,0.01033419,114250.0,114240.0,0.19828326]
[1754225180361,0.01327419,114250.0,114240.0,0.20036326]
[1754225181596,0.00508,114250.0,114240.0,0.20036326]
[1754225181885,0.00508,114250.0,114240.0,0.19536326]
[1754225182092,0.01326539,114250.0,114240.0,0.19536326]
[1754225183840,0.01326539,114250.0,114240.0,0.19636326]
[1754225184264,0.00508,114250.0,114240.0,0.19636326]
[1754225186057,0.00214,114250.0,114240.0,0.19636326]
[1754225186262,1.107664,114250.0,114240.0,0.19632326]
[1754225186709,1.107664,114250.0,114240.0,0.19942326]
[1754225188263,1.107664,114250.0,114240.0,0.19632326]
[1754225188748,0.00214,114250.0,114240.0,0.19632326]
[1754225188966,1.107664,114250.0,114240.0,0.19942326]
[1754225189150,1.107664,114250.0,114240.0,0.19442326]
[1754225190961,1.109804,114250.0,114240.0,0.19442326]
[1754225191172,0.00114,114250.0,114240.0,0.19442326]
[1754225192368,0.00114,114250.0,114240.0,0.05596326]
[1754225192579,0.00408,114250.0,114240.0,0.18960326]
[1754225193001,0.00114,114250.0,114240.0,0.18960326]
[1754225193215,0.00114,114250.0,114240.0,0.19168326]
[1754225193448,0.00114,114250.0,114240.0,0.19478326]
[1754225195378,1.107664,114250.0,114240.0,0.19478326]
[1754225196051,1.107664,114250.0,114240.0,0.19490326]
[1754225196268,1.107664,114250.0,114240.0,0.18990326]
[1754225197042,1.107664,114250.0,114240.0,0.68990326]
[1754225201569,0.00818085,114250.0,114240.0,0.68990326]
[1754225203260,0.00818085,114250.0,114240.0,0.68490326]
[1754225206050,1.107664,114250.0,114240.0,0.68490326]
[1754225206254,0.00819808,114250.0,114240.0,0.68490326]
[1754225208117,0.02463428,114250.0,114240.0,0.68490326]
[1754225210381,0.02463428,114250.0,114240.0,0.67990326]
[1754225213206,0.02673428,114250.0,114240.0,0.67990326]
[1754225213438,0.02673428,114250.0,114240.0,0.54614326]
[1754225213642,0.02673428,114250.0,114240.0,0.68010326]
[1754225213837,0.02463428,114250.0,114240.0,0.6347761]
[1754225214088,0.02463428,114250.0,114240.0,0.7687361]
[1754225214687,0.0383379,114250.0,114240.0,0.7687361]
[1754225214884,0.02463428,114250.0,114240.0,0.7687361]
[1754225215706,0.02458628,114250.0,114240.0,0.7687361]
[1754225217534,0.02459172,114250.0,114240.0,0.7687361]
[1754225217749,0.00815008,114250.0,114240.0,0.7687361]
[1754225219138,1.107664,114280.0,114240.0,0.7687361]
[1754225219346,0.03536498,114280.0,114250.0,0.29255102]
[1754225219570,0.03536498,114280.0,114250.0,0.22255284]
[1754225219777,0.03536498,114280.0,114260.0,0.06781]
[1754225219971,0.03536498,114280.0,114270.0,0.13396]
[1754225220263,0.03746498,114280.0,114270.0,0.19878]
[1754225220512,0.03846498,114280.0,114270.0,0.19878]
[1754225220948,0.03846402,114280.0,114270.0,0.19878]
[1754225221759,0.03846402,114280.0,114270.0,0.20087]
[1754225222385,0.02053294,114280.0,114270.0,0.19587]
[1754225223162,0.01843294,114280.0,114270.0,0.19886]
[1754225223572,0.002,114280.0,114270.0,0.19886]
[1754225224372,0.002,114280.0,114270.0,0.28749284]
[1754225224571,0.001,114280.0,114270.0,0.28749284]
[1754225224976,0.01370301,114290.0,114270.0,0.28749284]
[1754225225228,0.01370301,114290.0,114280.0,0.06781]
[1754225225384,0.01370301,114290.0,114280.0,0.0699]
[1754225227688,0.02189457,114290.0,114280.0,0.0699]
[1754225229512,0.02189457,114290.0,114280.0,0.0649]
[1754225230391,0.02399457,114290.0,114280.0,0.0649]
[1754225230579,0.02704457,114290.0,114280.0,0.0649]
[1754225231168,0.0487,114300.0,114280.0,0.06804]
[1754225231334,0.00203,114290.0,114280.0,0.20184]
[1754225233896,0.00203,114290.0,114280.0,0.19384]
[1754225234096,1.107664,114290.0,114280.0,0.19384]
[1754225236618,1.107664,114290.0,114280.0,0.18884]
[1754225238042,1.174254,114290.0,114280.0,0.13404]
[1754225238260,1.107664,114280.0,114250.0,0.07385198]
[1754225238471,1.512284,114270.0,114260.0,0.13404]
[1754225238678,1.107664,114260.0,114250.0,0.07079524]
[1754225238881,1.109644,114260.0,114250.0,0.07079524]
[1754225239084,0.957094,114260.0,114250.0,0.20491524]
[1754225240558,0.957094,114260.0,114250.0,0.20487524]
[1754225240968,0.957094,114260.0,114250.0,0.19687524]
[1754225241169,0.957094,114260.0,114250.0,0.06279524]
[1754225241394,0.957094,114260.0,114250.0,0.19687524]
[1754225243300,1.297094,114260.0,114250.0,8.326e-05]
[1754225244440,1.230504,114250.0,114240.0,0.62916326]
[1754225244647,1.294184,114250.0,114240.0,0.62916326]
[1754225247310,1.294184,114250.0,114240.0,0.63016326]
[1754225248071,1.294184,114250.0,114240.0,0.62216326]
[1754225248741,1.297094,114250.0,114240.0,0.62216326]
[1754225248975,1.297094,114250.0,114240.0,0.48808326]
[1754225249237,1.297094,114250.0,114240.0,0.62212326]
[1754225249503,1.297094,114250.0,114240.0,0.48808326]
[1754225249975,1.294184,114250.0,114240.0,0.48808326]
[1754225250206,1.294184,114250.0,114240.0,0.62208326]
[1754225250659,1.294184,114250.0,114240.0,0.48808326]
[1754225250883,1.297094,114250.0,114240.0,0.62208326]
[1754225251566,1.297094,114250.0,114240.0,0.61708326]
[1754225252037,1.297094,114250.0,114240.0,0.61608326]
[1754225252753,1.298094,114250.0,114240.0,0.61608326]
[1754225256392,1.298094,114250.0,114240.0,0.60808326]
[1754225258787,1.295184,114250.0,114240.0,0.60308326]
[1754225259757,1.30888868,114250.0,114240.0,0.60308326]
[1754225261212,1.31707013,114250.0,114240.0,0.60308326]
[1754225261444,1.31707013,114250.0,114240.0,0.66928326]
[1754225263824,1.31707013,114250.0,114240.0,0.66128326]
[1754225264473,0.97707013,114250.0,114240.0,0.66128326]
[1754225265164,0.91537013,114250.0,114240.0,0.66128326]
[1754225265376,0.93175043,114250.0,114240.0,0.66128326]
[1754225265795,0.93175043,114250.0,114240.0,0.65628326]
[1754225266051,0.91804575,114250.0,114240.0,0.65628326]
[1754225268529,1.32156575,114250.0,114240.0,0.59008326]
[1754225269126,1.33527096,114250.0,114240.0,0.59008326]
[1754225269330,1.33527096,114250.0,114240.0,0.65628326]
[1754225270264,1.27175096,114250.0,114240.0,0.65628326]
[1754225270858,1.27175096,114250.0,114240.0,0.64828326]
[1754225271892,1.47187096,114250.0,114240.0,0.44808326]
[1754225272094,1.47187096,114250.0,114240.0,0.58176326]
[1754225272292,1.47187096,114250.0,114240.0,0.44808326]
[1754225272560,1.49079925,114250.0,114240.0,0.44808326]
[1754225273000,1.49079925,114250.0,114240.0,0.44308326]
[1754225274289,1.57963681,114250.0,114240.0,0.44308326]
[1754225274511,1.49079925,114250.0,114240.0,0.44308326]
[1754225277779,1.47709404,114250.0,114240.0,0.44308326]
[1754225278011,1.47709404,114250.0,114240.0,0.43508326]
[1754225279945,1.47709404,114250.0,114240.0,0.43008326]
[1754225280218,1.47417404,114250.0,114240.0,0.43008326]
[1754225280951,1.48787975,114250.0,114240.0,0.43008326]
[1754225283494,1.48775975,114250.0,114240.0,0.43008326]
[1754225285011,1.48775975,114250.0,114240.0,0.42208326]
[1754225286977,1.48775975,114250.0,114240.0,0.41708326]
[1754225287182,1.5658016,114250.0,114240.0,0.41708326]
[1754225287389,1.56579429,114250.0,114240.0,0.41708326]
[1754225287589,1.47695673,114250.0,114240.0,0.41708326]
[1754225288789,1.49440575,114250.0,114240.0,0.41708326]
[1754225289387,1.51940575,114250.0,114240.0,0.41708326]
[1754225289637,1.56805697,114250.0,114240.0,0.41708326]
[1754225289879,1.65689453,114250.0,114240.0,0.41708326]
[1754225290375,1.65260278,114250.0,114240.0,0.41708326]
[1754225290624,1.67060278,114250.0,114240.0,0.41708326]
[1754225291292,1.67660278,114250.0,114240.0,0.41708326]
[1754225291604,1.67860278,114250.0,114240.0,0.41708326]
[1754225292237,1.67660278,114250.0,114240.0,0.40908326]
[1754225292665,1.67960278,114250.0,114240.0,0.40908326]
[1754225294168,1.67960278,114250.0,114240.0,0.40408326]
[1754225295713,1.66589453,114250.0,114240.0,0.40408326]
[1754225296551,1.66591472,114250.0,114240.0,0.40408326]
[1754225297495,1.57707716,114250.0,114240.0,0.40408326]
[1754225297684,1.46009594,114250.0,114240.0,0.47616326]
[1754225298502,1.47380378,114250.0,114240.0,0.47616326]
[1754225299235,1.31516378,114250.0,114240.0,0.46816326]
[1754225299489,1.44892378,114250.0,114240.0,0.46816326]
[1754225299712,1.47392378,114250.0,114240.0,0.46816326]
[1754225301282,1.47092378,114250.0,114240.0,0.46316326]
[1754225301707,1.56176134,114250.0,114240.0,0.46316326]
[1754225301923,1.47292378,114250.0,114240.0,0.46316326]
[1754225302133,1.49925778,114250.0,114240.0,0.46316326]
[1754225302340,1.28815678,114250.0,114240.0,0.46316326]
[1754225303940,1.28115678,114250.0,114240.0,0.46316326]
[1754225304829,1.23878776,114250.0,114240.0,0.46316326]
[1754225305063,1.21245749,114250.0,114240.0,0.46316326]
[1754225305492,0.87245749,114250.0,114240.0,0.46316326]
[1754225305759,1.21245749,114250.0,114240.0,0.46316326]
[1754225306837,1.21245749,114250.0,114240.0,0.45516326]
[1754225307464,1.21745749,114250.0,114240.0,0.45516326]
[1754225307681,0.72469651,114250.0,114240.0,0.45516326]
[1754225307879,0.85861651,114250.0,114240.0,0.45516326]
[1754225308083,0.84490867,114250.0,114240.0,0.45516326]
[1754225308275,0.84490867,114250.0,114240.0,0.45016326]
[1754225308474,1.18490867,114250.0,114240.0,0.45016326]
[1754225309230,1.17990867,114250.0,114240.0,0.45016326]
[1754225309701,1.04598867,114250.0,114240.0,0.45016326]
[1754225310939,1.05769486,114250.0,114240.0,0.45016326]
[1754225311579,1.06169486,114250.0,114240.0,0.45016326]
[1754225312444,1.06269486,114250.0,114240.0,0.45016326]
[1754225313378,1.06272186,114250.0,114240.0,0.45016326]
[1754225313591,1.19656186,114250.0,114240.0,0.45016326]
[1754225314018,1.19656087,114250.0,114240.0,0.45016326]
[1754225315044,1.19656087,114250.0,114240.0,0.44216326]
[1754225315455,1.19656087,114250.0,114240.0,0.43716326]
[1754225319730,1.69656087,114250.0,114240.0,0.43716326]
[1754225321638,1.56272087,114250.0,114240.0,0.43716326]
[1754225322202,1.56272087,114250.0,114240.0,0.42916326]
[1754225322425,1.56272087,114250.0,114240.0,0.42416326]
[1754225322642,1.53810919,114250.0,114240.0,0.42416326]
[1754225322854,1.56271417,114250.0,114240.0,0.42416326]
[1754225325405,1.19260466,114250.0,114240.0,0.42416326]
[1754225325563,0.85320166,114250.0,114240.0,0.42416326]
[1754225326068,0.845,114250.0,114240.0,0.42416326]
[1754225326393,0.505,114250.0,114240.0,0.42416326]
[1754225326601,0.844,114250.0,114240.0,0.42416326]
[1754225326978,0.844,114250.0,114240.0,0.42516326]
[1754225327598,0.84,114250.0,114240.0,0.42516326]
[1754225327975,0.841,114250.0,114240.0,0.42516326]
[1754225329278,1.60786585,114250.0,114240.0,0.42516326]
[1754225329457,1.54684103,114250.0,114240.0,0.55445326]
[1754225329697,1.31244688,114250.0,114240.0,0.54945326]
[1754225329875,1.31244688,114250.0,114240.0,0.55479326]
[1754225330109,1.31244688,114250.0,114240.0,0.55483326]
[1754225330314,1.31046688,114250.0,114240.0,0.55483326]
[1754225332272,1.31244688,114250.0,114240.0,0.55483326]
[1754225333518,1.32064625,114250.0,114240.0,0.41497326]
[1754225333756,1.38534625,114250.0,114240.0,0.48256326]
[1754225334169,1.38534625,114250.0,114240.0,0.47456326]
[1754225334486,1.38243625,114250.0,114240.0,0.34008326]
[1754225334697,1.32064625,114250.0,114240.0,0.54184326]
[1754225334907,1.32064625,114250.0,114240.0,0.54508326]
[1754225335527,0.63926325,114250.0,114240.0,0.54508326]
[1754225335749,0.29106388,114250.0,114240.0,0.54508326]
[1754225336595,0.63106388,114250.0,114240.0,0.54508326]
[1754225336810,0.63106388,114250.0,114240.0,0.54008326]
[1754225340072,0.63106388,114250.0,114240.0,0.54072326]
[1754225343841,0.63106388,114250.0,114240.0,0.53572326]
[1754225352780,0.63106388,114250.0,114240.0,0.6243561]
[1754225353002,0.29106388,114250.0,114240.0,0.6243561]
[1754225353205,0.29106388,114250.0,114240.0,0.6506761]
[1754225357903,0.28873488,114250.0,114240.0,0.6506761]
[1754225370000,0.28873488,114250.0,114240.0,0.5155561]
[1754225370208,0.28873488,114250.0,114240.0,0.6504361]
[1754225370626,0.28873488,114250.0,114240.0,0.5155561]
[1754225370846,0.28873488,114250.0,114240.0,0.6503961]
[1754225373522,0.28873488,114250.0,114240.0,0.5155561]
[1754225373744,0.28873488,114250.0,114240.0,0.6503561]
[1754225401604,0.29071488,114250.0,114240.0,0.6503561]
[1754225403610,0.28873488,114250.0,114240.0,0.6503561]
[1754225409673,0.09274486,114250.0,114240.0,0.6503561]
[1754225411962,0.679403,114270.0,114240.0,0.6503561]
[1754225412172,0.00821885,114270.0,114250.0,0.22590102]
[1754225412391,0.00821885,114270.0,114260.0,0.13508]
[1754225413171,0.01221885,114270.0,114260.0,0.13508]
[1754225413418,0.00821885,114270.0,114260.0,0.19942]
[1754225413746,0.01221885,114270.0,114260.0,0.19942]
[1754225414240,0.01321885,114270.0,114260.0,0.19942]
[1754225414641,0.01221885,114270.0,114260.0,0.19942]
[1754225414886,0.01221885,114270.0,114260.0,0.2025]
[1754225415042,0.01221885,114270.0,114260.0,0.29332284]
[1754225415248,0.01321885,114270.0,114260.0,0.29332284]
[1754225415662,0.34,114280.0,114260.0,0.29332284]
[1754225415898,0.34821836,114280.0,114260.0,0.28832284]
[1754225416144,0.34821836,114280.0,114260.0,0.28932284]
[1754225416845,0.34821836,114280.0,114270.0,0.06434]
[1754225417256,0.34921836,114280.0,114270.0,0.06434]
[1754225418312,0.00921836,114280.0,114270.0,0.06434]
[1754225418492,0.00921836,114280.0,114270.0,0.06742]
[1754225418728,0.00821836,114280.0,114270.0,0.06742]
[1754225418937,0.01021836,114280.0,114270.0,0.06742]
[1754225419144,0.002,114280.0,114270.0,0.06742]
[1754225419551,0.002,114280.0,114270.0,0.06746]
[1754225420589,0.002,114280.0,114270.0,0.06438]
[1754225423055,0.002,114280.0,114270.0,0.05938]
[1754225423467,0.002,114280.0,114270.0,0.06246]
[1754225425807,0.002,114280.0,114270.0,0.088777]
[1754225426885,0.002,114280.0,114270.0,0.161117]
[1754225427550,0.002,114280.0,114270.0,0.225457]
[1754225428072,0.002,114280.0,114270.0,0.19914]
[1754225429993,0.002,114280.0,114270.0,0.19722]
[1754225430837,0.002,114280.0,114270.0,0.090657]
[1754225431069,0.002,114280.0,114270.0,0.160997]
[1754225431283,0.679403,114300.0,114270.0,0.160997]
[1754225431458,0.679403,114290.0,114270.0,0.225337]
[1754225431656,0.00820702,114290.0,114270.0,0.225337]
[1754225432028,0.00820702,114290.0,114270.0,0.228417]
[1754225432251,0.00820702,114290.0,114280.0,0.13468]
[1754225433241,0.01320702,114290.0,114280.0,0.13468]
[1754225433641,0.01320722,114290.0,114280.0,0.13468]
[1754225433846,0.01520722,114290.0,114280.0,0.13468]
[1754225434063,0.01320722,114290.0,114280.0,0.13468]
[1754225434314,0.00820722,114290.0,114280.0,0.13468]
[1754225434434,0.01020722,114290.0,114280.0,0.13468]
[1754225435286,0.01020722,114290.0,114280.0,0.19902]
[1754225435647,0.01120722,114290.0,114280.0,0.19902]
[1754225436652,0.01120722,114290.0,114280.0,0.2021]
[1754225437166,0.01120722,114290.0,114280.0,0.19125]
[1754225437987,0.01120722,114290.0,114280.0,0.05657]
[1754225438185,0.01120722,114290.0,114280.0,0.19121]
[1754225439647,0.01125477,114290.0,114280.0,0.19121]
[1754225440433,0.01125477,114290.0,114280.0,0.05657]
[1754225440650,0.01125477,114290.0,114280.0,0.19117]
[1754225441070,0.01125477,114290.0,114280.0,0.05657]
[1754225441254,0.01125477,114290.0,114280.0,0.19117]
[1754225444167,0.01125477,114290.0,114280.0,0.18617]
[1754225444373,0.00985477,114290.0,114280.0,0.18617]
[1754225447986,0.00304755,114290.0,114280.0,0.18617]
[1754225448438,0.00204755,114290.0,114280.0,0.18617]
[1754225448844,0.00204755,114290.0,114280.0,0.18717]
[1754225449802,4.755e-05,114290.0,114280.0,0.18717]
[1754225450213,4.755e-05,114290.0,114280.0,0.18817]
[1754225451435,4.755e-05,114290.0,114280.0,0.18317]
[1754225456450,0.00826082,114290.0,114280.0,0.18317]
[1754225457144,0.00826082,114290.0,114280.0,0.04857]
[1754225457369,0.00826082,114290.0,114280.0,0.18289]
[1754225458695,0.00826082,114290.0,114280.0,0.17789]
[1754225459099,0.00826082,114290.0,114280.0,0.17764]
[1754225463191,4.755e-05,114290.0,114280.0,0.26627284]
[1754225463447,0.07558819,114310.0,114280.0,0.26627284]
[1754225463684,0.05748293,114310.0,114290.0,0.15253284]
[1754225463900,0.05748293,114310.0,114300.0,0.20018]
[1754225464082,0.04378319,114310.0,114300.0,0.20018]
[1754225464291,0.04378319,114310.0,114300.0,0.226489]
[1754225464547,0.04378047,114310.0,114300.0,0.226489]
[1754225465318,0.04478047,114310.0,114300.0,0.226489]
[1754225465514,0.05847784,114310.0,114300.0,0.226489]
[1754225465832,0.05747784,114310.0,114300.0,0.223569]
[1754225466199,0.05847784,114310.0,114300.0,0.223569]
[1754225466428,0.05847784,114310.0,114300.0,0.24961967]
[1754225466693,0.06055784,114310.0,114300.0,0.11032967]
[1754225466906,0.78194084,114310.0,114300.0,0.160469]
[1754225467367,0.77993744,114310.0,114300.0,0.13416]
[1754225467570,0.34,114300.0,114290.0,0.00301]
[1754225467745,0.34,114300.0,114290.0,0.20018]
[1754225468626,1.019403,114300.0,114290.0,0.20014]
[1754225468838,0.34,114300.0,114290.0,0.20014]
[1754225469027,0.34208,114300.0,114290.0,0.20014]
[1754225470023,0.34208,114300.0,114290.0,0.20214]
[1754225471768,0.34,114300.0,114290.0,0.20214]
[1754225472547,0.35369787,114300.0,114290.0,0.20214]
[1754225472747,0.34,114300.0,114290.0,0.19714]
[1754225473723,0.34,114300.0,114290.0,0.223453]
[1754225474887,0.34,114300.0,114290.0,0.226653]
[1754225480692,0.34,114300.0,114290.0,0.31528584]
[1754225486747,0.34,114300.0,114290.0,0.28897284]
[1754225489191,0.03557145,114310.0,114290.0,0.28897284]
[1754225489432,0.04377882,114310.0,114300.0,0.15358006]
[1754225489634,0.04377882,114310.0,114300.0,0.15678006]
[1754225489830,0.03557145,114310.0,114300.0,0.15873006]
[1754225490989,0.03657145,114310.0,114300.0,0.15873006]
[1754225493276,0.03557145,114310.0,114300.0,0.15873006]
[1754225493636,0.03557145,114310.0,114300.0,0.15973006]
[1754225494262,0.03557145,114310.0,114300.0,0.18703806]
[1754225494491,0.03557145,114310.0,114300.0,0.18485084]
[1754225494921,0.03557145,114310.0,114300.0,0.15854284]
[1754225495241,0.03557145,114310.0,114300.0,0.16073006]
[1754225496235,0.03757145,114310.0,114300.0,0.16073006]
[1754225497348,0.03557145,114310.0,114300.0,0.16073006]
[1754225503083,0.03557145,114310.0,114300.0,0.66073006]
[1754225503309,0.03557145,114310.0,114300.0,0.65854284]
[1754225512442,0.16087387,114320.0,114300.0,0.65854284]
[1754225512646,0.01144645,114320.0,114310.0,0.13392]
[1754225512859,0.01341645,114320.0,114310.0,0.1941]
[1754225513913,0.01441645,114320.0,114310.0,0.1941]
[1754225514318,0.03401729,114320.0,114310.0,0.1941]
[1754225514732,0.01441645,114320.0,114310.0,0.1941]
[1754225516077,0.679403,114330.0,114310.0,0.19925]
[1754225516227,0.69596381,114330.0,114310.0,0.19925]
[1754225516433,0.01656081,114330.0,114310.0,0.19925]
[1754225517616,0.01856081,114330.0,114310.0,0.19925]
[1754225518346,0.01956081,114330.0,114310.0,0.19925]
[1754225519577,0.01957443,114330.0,114310.0,0.19925]
[1754225519808,0.01957443,114330.0,114310.0,0.13907]
[1754225520027,0.01957443,114330.0,114320.0,0.06018]
[1754225520836,0.01857443,114330.0,114320.0,0.06018]
[1754225521446,0.01757443,114330.0,114320.0,0.06018]
[1754225522020,0.0379678,114330.0,114320.0,0.06018]
[1754225523630,0.0379678,114330.0,114320.0,0.06323]
[1754225524843,0.0379678,114330.0,114320.0,0.05823]
[1754225525026,0.0379678,114330.0,114310.0,0.07376198]
[1754225525250,0.0379678,114330.0,114320.0,0.13392]
[1754225526665,0.0369678,114330.0,114310.0,0.07376198]
[1754225526913,0.0419678,114330.0,114320.0,0.13392]
[1754225527114,0.0369678,114330.0,114320.0,0.13392]
[1754225527270,0.03697038,114330.0,114320.0,0.13392]
[1754225527891,0.04618756,114330.0,114320.0,0.13392]
[1754225528107,0.04418756,114330.0,114320.0,0.1941]
[1754225528314,0.04518756,114330.0,114320.0,0.1941]
[1754225528515,0.04718756,114330.0,114320.0,0.1941]
[1754225528712,0.04718756,114330.0,114320.0,0.19715]
[1754225531024,0.026308,114350.0,114320.0,0.19715]
[1754225531237,0.679403,114340.0,114320.0,0.18915]
[1754225531898,0.679403,114340.0,114320.0,0.18415]
[1754225532098,0.679403,114340.0,114330.0,0.13392]
[1754225532303,0.69833682,114340.0,114330.0,0.13392]
[1754225532477,0.679403,114340.0,114330.0,0.13392]
[1754225532888,0.679403,114340.0,114310.0,0.13105198]
[1754225533114,0.679403,114330.0,114320.0,0.13392]
[1754225533491,0.71422401,114330.0,114320.0,0.13392]
[1754225534117,1.05422401,114330.0,114320.0,0.13392]
[1754225534705,1.05422401,114330.0,114310.0,0.13406198]
[1754225534706,0.679403,114320.0,114310.0,0.13406198]
[1754225534914,0.679403,114320.0,114310.0,0.27013198]
[1754225536356,0.679403,114320.0,114310.0,0.27113198]
[1754225536913,0.679403,114320.0,114310.0,0.13721198]
[1754225537129,0.679403,114320.0,114310.0,0.27213198]
[1754225539642,0.679403,114320.0,114310.0,0.20142]
[1754225540292,0.679403,114320.0,114310.0,0.19642]
[1754225543261,0.00821638,114320.0,114310.0,0.19642]
[1754225547712,0.00821623,114320.0,114310.0,0.26713198]
[1754225549180,0.00821623,114320.0,114310.0,0.26213198]
[1754225551395,0.00821623,114320.0,114310.0,0.19142]
[1754225554141,0.38449721,114330.0,114310.0,0.19142]
[1754225554463,0.679403,114320.0,114310.0,0.00415]
[1754225554674,0.679403,114320.0,114310.0,0.13807]
[1754225555035,0.679403,114320.0,114310.0,0.20042]
[1754225555644,0.679403,114320.0,114310.0,0.19942]
[1754225556264,0.37628078,114330.0,114310.0,0.19442]
[1754225556490,0.679403,114320.0,114310.0,0.13623]
[1754225556654,0.00821652,114320.0,114310.0,0.19757]
[1754225557318,0.00821652,114320.0,114310.0,0.19657]
[1754225558385,0.00821652,114320.0,114310.0,0.19757]
[1754225559765,0.00821652,114320.0,114310.0,0.19857]
[1754225563369,0.00821652,114320.0,114310.0,0.19357]
[1754225570306,0.00821652,114320.0,114310.0,0.18857]
[1754225577500,0.00821652,114320.0,114310.0,0.18357]
[1754225577709,0.679403,114320.0,114310.0,0.18357]
[1754225579205,0.679403,114320.0,114310.0,0.18361]
[1754225580907,0.03628078,114330.0,114310.0,0.18361]
[1754225581171,0.05271617,114330.0,114310.0,0.19097198]
[1754225581377,0.01643539,114330.0,114320.0,0.06411]
[1754225581800,0.01643539,114330.0,114320.0,0.06619]
[1754225582936,0.01743539,114330.0,114320.0,0.06619]
[1754225583597,0.01643539,114330.0,114320.0,0.06619]
[1754225583997,0.01743539,114330.0,114320.0,0.06619]
[1754225584704,0.01743539,114330.0,114320.0,0.06119]
[1754225585238,0.01940539,114330.0,114320.0,0.06119]
[1754225586166,0.05443623,114330.0,114320.0,0.06119]
[1754225586395,0.01940539,114330.0,114320.0,0.06119]
[1754225586613,0.01940539,114330.0,114320.0,0.06412]
[1754225588479,0.01940539,114330.0,114320.0,0.19299]
[1754225588726,0.02256539,114330.0,114320.0,0.19299]
[1754225589145,0.02256539,114330.0,114320.0,0.05911]
[1754225589146,1.04196839,114330.0,114320.0,0.05911]
[1754225589377,1.04196839,114330.0,114320.0,0.19299]
[1754225589632,1.025533,114330.0,114320.0,0.19299]
[1754225589863,1.0688972,114330.0,114320.0,0.19299]
[1754225591767,1.0688972,114330.0,114320.0,0.18799]
[1754225592427,1.085329,114330.0,114320.0,0.13388]
[1754225593691,1.085329,114330.0,114320.0,0.1975]
[1754225595325,1.082169,114330.0,114320.0,0.1975]
[1754225595528,1.082169,114330.0,114320.0,0.20255]
[1754225597981,1.08216942,114330.0,114320.0,0.20255]
[1754225598941,1.08216942,114330.0,114320.0,0.19755]
[1754225600812,1.08216968,114330.0,114320.0,0.19755]
[1754225601006,1.08216968,114330.0,114320.0,0.19462]
[1754225602315,1.08216968,114330.0,114320.0,0.19755]
[1754225603856,1.08216968,114330.0,114320.0,0.06367]
[1754225604187,1.08216968,114330.0,114320.0,0.19755]
[1754225606492,1.08216968,114330.0,114320.0,0.18962]
[1754225607173,1.08216968,114330.0,114320.0,0.19255]
[1754225607602,1.08019968,114330.0,114320.0,0.19255]
[1754225608064,1.06376746,114330.0,114320.0,0.19255]
[1754225609631,1.06580746,114330.0,114320.0,0.19255]
[1754225610475,1.06376746,114330.0,114320.0,0.19255]
[1754225611054,1.06580746,114330.0,114320.0,0.19255]
[1754225611483,0.38436446,114330.0,114320.0,0.19255]
[1754225612499,0.38423058,114330.0,114320.0,0.19255]
[1754225612719,0.04423058,114330.0,114320.0,0.19255]
[1754225621877,0.04422118,114330.0,114320.0,0.19255]
[1754225622119,0.679403,114340.0,114320.0,0.19255]